Cogmind - Beta 17 @@@ ROGUE MODE // 2026.07.01 @ 01:08:57 Player: Junkman Result: Self-destructed Performance ------------- Evolutions (2) 1000 Regions Visited (3) 600 Robots Destroyed (16) 80 Value Destroyed (380) 380 Prototype IDs (0) 0 Alien Tech Used (0) 0 Bonus (0) 0 TOTAL SCORE: 2060 Bonus ------- None Cogmind --------- Core Integrity 265/550 Matter 268/300 Energy 100/100 System Corruption 0% Temperature Cool (0) Movement Treading (152) Location -8/Materials Parts ------- > --- POWER (2) -------- (None) > --- PROPULSION (2) --- Light Treads Advanced Treads > --- UTILITY (3) ------ (None) > --- WEAPON (4) ------- Light Assault Rifle > --- INVENTORY (5) ---- Light Treads Light Treads Wheel Compact Wheel Medium Matter Pod (0) Peak State ------------ > --- POWER ------------ Improved Ion Engine Light Nuclear Core > --- PROPULSION ------- Light Treads Advanced Treads > --- UTILITY ---------- Small Storage Unit Light Armor Plating Hardened Medium Armor Plating > --- WEAPON ----------- Shotgun Shotgun Shotgun Shotgun > --- INVENTORY -------- Improved Ion Engine Improved Ion Engine Carbon-fiber Leg Carbon-fiber Leg Wheel Compact Wheel Medium Matter Pod [Rating: 23] Favorites ----------- Power Ion Engine Engine Ion Engine Power Core Light Nuclear Core Propulsion Light Treads Treads Light Treads Utility Small Storage Unit Storage Small Storage Unit Protection Light Armor Plating Weapon Shotgun Ballistic Gun Shotgun Build | -11 -10 -10 -8 ------- Run | Yrd Mat Sub Mat Slots Evolved 4 | . . . 4 Power 1 | . . . 1 Propulsion . | . . . . Utility 1 | . . . 1 Weapon 2 | . . . 2 Parts Attached 19 | 6 3 . 10 Power 4 | 1 . . 3 Engine 3 | 1 . . 2 Core 1 | . . . 1 Reactor . | . . . . Propulsion 3 | 2 . . 1 Treads 3 | 2 . . 1 Leg . | . . . . Wheel . | . . . . Hover . | . . . . Flight . | . . . . Utility 5 | 1 1 . 3 Device . | . . . . Storage 3 | 1 . . 2 Processor . | . . . . Hackware . | . . . . Protection 2 | . 1 . 1 Artifact . | . . . . Weapon 7 | 2 2 . 3 Energy Gun . | . . . . Energy Cannon . | . . . . Ballistic Gun 7 | 2 2 . 3 Ballistic Cannon . | . . . . Launcher . | . . . . Special Weapon . | . . . . Impact Weapon . | . . . . Slashing Weapon . | . . . . Piercing Weapon . | . . . . Special Melee Weapon . | . . . . Unidentified Prototypes . | . . . . Parts Lost 9 | . . . 9 Power 3 | . . . 3 Propulsion . | . . . . Utility 3 | . . . 3 Weapon 3 | . . . 3 Highest Loss Streak 9 | . . . 9 To Critical Strikes . | . . . . Average Backups 6 | 5 7 8 6 Power 1 | . 1 2 1 Propulsion 4 | 3 4 4 4 Utility . | . . . . Weapon 1 | 1 1 2 . Tool/Special . | . . . . Unused Backups 12 | . 2 . 10 Power 2 | . 1 . 1 Propulsion 8 | . . . 8 Utility 1 | . . . 1 Weapon 1 | . 1 . . Tool/Special . | . . . . Average Slot Usage (%) 94 | . 87 100 89 Engine 13 | . 14 14 13 Treads 24 | . 28 28 18 Storage 12 | . 14 14 8 Protection 11 | . 3 14 13 Ballistic Gun 29 | . 26 28 32 Peak Build Rating 23 | 6 10 10 23 Average Rating 9 | 5 8 10 18 On Entrance 6 | . 6 10 10 Avg Prop Armor Cover (%) . | . . . . Naked Turns . | . . . . Heaviest Build 40 | 12 19 19 40 Greatest Support 42 | 40 40 40 42 Greatest Overweight (x) . | . . . . Average Overweight (x) . | . . . . Largest Inventory Capacity 10 | 8 8 8 10 Average Capacity 7 | 7 8 8 7 Most Carried 8 | 8 8 8 8 Average Carried 6 | 5 7 8 6 Final Capacity 8 | 8 8 8 5 Final Carried 8 | 6 8 8 5 Class Distribution -------------------- 86% | Mutant 13% | Tank Dominant Class ---------------- Mutant | -10/Materials Mutant | -10/Subcaves Tank | -8/Materials Resources | -11 -10 -10 -8 ----------- Run | Yrd Mat Sub Mat Matter Collected 787 | 222 13 21 531 Remotely . | . . . . Salvage Created 454 | . 13 . 441 Parts 34 | . 4 . 30 Haulers Intercepted . | . . . . Recyclers Shooed 2 | . . . 2 Parts Field Recycled . | . . . . Retrieved Matter . | . . . . Parts Self-Destructed 1 | . . 1 . Prevented . | . . . . Parts Restored . | . . . . Kills | -11 -10 -10 -8 ------- Run | Yrd Mat Sub Mat Combat Hostiles Destroyed 10 | . . . 10 Guns 10 | . . . 10 Classes Destroyed 8 | . 2 . 6 Worker 2 | . . . 2 Builder 1 | . 1 . . Recycler 1 | . . . 1 Watcher 2 | . 1 . 1 Swarmer 4 | . . . 4 Grunt 3 | . . . 3 Sentry 2 | . . . 2 Hunter 1 | . . . 1 Best Kill Streak 7 | . 1 . 7 Combat Bots Only 5 | . . . 5 Max Kills in Single Turn 3 | . 1 . 3 Gunslinging . | . . . . Exploded . | . . . . Melee . | . . . . Uniques/NPCs Destroyed . | . . . . Combat | -11 -10 -10 -8 -------- Run | Yrd Mat Sub Mat Hostile Shots Fired 106 | . . . 106 Missed 25 | . . . 25 Hits 81 | . . . 81 Projectile 81 | . . . 81 Critical Strikes 6 | . . . 6 Damage Taken 1500 | . . . 1500 Core 285 | . . . 285 Absorbed by Shields . | . . . . Core Remaining (%) 100 | 100 . 100 . Volleys Fired 44 | . 5 . 39 Largest 4 | . 2 . 4 Hottest 92 | . 46 . 92 Shots Fired 122 | . 10 . 112 Gun 122 | . 10 . 112 Cannon . | . . . . Launcher . | . . . . Special . | . . . . Kinetic 122 | . 10 . 112 Thermal . | . . . . Explosive . | . . . . Electromagnetic . | . . . . Robot Hit Streak 8 | . 2 . 8 Robot Miss Streak 12 | . 6 . 12 Penetration Max . | . . . . Secondary Targets 4 | . . . 4 Max Gunslinging Chain 1 | . . . 1 Shots Hit Robots 78 | . 4 . 74 Core Hits 40 | . 3 . 37 Critical Kills . | . . . . Critical Parts Destroyed 1 | . . . 1 Critical Strikes 1 | . . . 1 Destroy 1 | . . . 1 Melee Attacks . | . . . . Impact . | . . . . Slashing . | . . . . Piercing . | . . . . Sneak Attacks . | . . . . Combat Hostiles . | . . . . Follow-up Attacks . | . . . . Damage Inflicted 1165 | . 57 . 1108 Guns 1161 | . 53 . 1108 Cannons . | . . . . Explosions . | . . . . Melee . | . . . . Ramming 4 | . 4 . . Kinetic 1161 | . 53 . 1108 Thermal . | . . . . Explosive . | . . . . Electromagnetic . | . . . . Impact . | . . . . Slashing . | . . . . Piercing . | . . . . Highest Corruption . | . . . . Average Corruption . | . . . . Corruption Purged . | . . . . Corruption Blocked . | . . . . Overload Shots . | . . . . Overflow Damage . | . . . . Projectiles . | . . . . Explosions . | . . . . Melee . | . . . . Knockbacks . | . . . . Impact . | . . . . Kinetic . | . . . . Secondary . | . . . . Self-Inflicted Damage . | . . . . Shots . | . . . . Rammed 2 | . 1 . 1 Targets Rammed 3 | . 2 . 1 Kicked . | . . . . Crushed 1 | . 1 . . Highest Temperature 382 | . . . 382 Average Temperature 177 | . . . 177 Received Heat Transfer 432 | . . . 432 Effects 5 | . . . 5 Shutdowns 2 | . . . 2 Matter Decay 1 | . . . 1 Damage (minor) 2 | . . . 2 Siege Activations . | . . . . Martial Activations . | . . . . Shielding Activations . | . . . . Robots Disrupted . | . . . . Combat Hostiles . | . . . . Robots Corrupted . | . . . . Combat Hostiles . | . . . . Parts Fried . | . . . . Impact Corruptions . | . . . . Robots Melted . | . . . . Combat Hostiles . | . . . . Parts Melted . | . . . . Heat Transferred . | . . . . Parts Sabotaged . | . . . . Parts Stolen . | . . . . Parts Stripped . | . . . . Power Chain Reactions . | . . . . Alert | -11 -10 -10 -8 ------- Run | Yrd Mat Sub Mat Maximum Alert Level . | . . . . Low Security (%) 100 | 100 100 . 100 Level 1 . | . . . . Level 2 . | . . . . Level 3 . | . . . . Level 4 . | . . . . Level 5 . | . . . . High Security . | . . . . Max Security . | . . . . Peak Influence 156 | . 7 . 156 Initial . | . . . . Average 8 | . . . 39 Influence Increases 288 | . 12 . 276 Destroy 0b10 Robot/C 200 | . . . 200 Destroy 0b10 Robot/NC 30 | . 10 . 20 Destroy Leader 54 | . 2 . 52 Successful Hack 4 | . . . 4 Influence Decreases 212 | . 12 . 200 Time Decay 122 | . 12 . 110 Lost Part 90 | . . . 90 Squads Dispatched 4 | . 1 . 3 Investigation 2 | . 1 . 1 Extermination . | . . . . Reinforcement 2 | . . . 2 Assault . | . . . . Garrison . | . . . . Intercept . | . . . . Searches Triggered . | . . . . Construction Impeded 1 | . . . 1 Haulers Reinforced . | . . . . Active Scanning Responses . | . . . . Cargo Convoy Interrupts . | . . . . Stealth | -11 -10 -10 -8 --------- Run | Yrd Mat Sub Mat Distress Signals 1 | . . . 1 Communications Jammed . | . . . . Distress Signals . | . . . . Times Spotted 23 | . 2 . 21 Peak Tracking Total 8 | . 2 . 8 Tactical Retreats . | . . . . Traps | -11 -10 -10 -8 ------- Run | Yrd Mat Sub Mat Traps Triggered . | . . . . Indirectly . | . . . . Trap Hack Attempts . | . . . . Triggered . | . . . . Disarmed . | . . . . Reprogrammed . | . . . . Reused . | . . . . Traps Extracted . | . . . . Installed . | . . . . Triggered . | . . . . Machines | -11 -10 -10 -8 ---------- Run | Yrd Mat Sub Mat Machines Disabled . | . . . . Max in Single Turn . | . . . . Machines Repaired . | . . . . Machines Dismantled . | . . . . Machines Sabotaged . | . . . . Overloaded Fab Kills . | . . . . Hacking | -11 -10 -10 -8 --------- Run | Yrd Mat Sub Mat Machines Accessed 4 | . 2 1 1 Terminals 1 | . . . 1 Fabricators . | . . . . Repair Stations 1 | . 1 . . Recycling Units 1 | . 1 . . Scanalyzers . | . . . . Garrison Access . | . . . . Total Hacks 13 | . 5 3 5 Successful 8 | . 1 3 4 Failed 5 | . 4 . 1 Catastrophic 1 | . 1 . . Database Lockouts . | . . . . Manual 2 | . . 2 . Terminals 5 | . . . 5 Fabricators . | . . . . Repair Stations 1 | . 1 . . Recycling Units 4 | . 4 . . Scanalyzers . | . . . . Garrison Access . | . . . . Terminal Hacks 7 | . . 3 4 Record 5 | . . 3 2 Alert Level 1 | . . . 1 Dispatch Records 1 | . . . 1 Fabricator Hacks . | . . . . Repair Station Hacks . | . . . . Recycling Unit Hacks 1 | . 1 . . Process 1 | . 1 . . Scanalyzer . | . . . . Garrison Access Hacks . | . . . . Unauthorized Hacks . | . . . . Terminals . | . . . . Fabricators . | . . . . Repair Stations . | . . . . Recycling Units . | . . . . Scanalyzers . | . . . . Garrison Access . | . . . . Data Cores Recovered . | . . . . Used . | . . . . Hacking Detections 3 | . 2 . 1 Full Trace Events 2 | . 1 . 1 Feedback Events . | . . . . Feedback Blocked . | . . . . Robot Schematics Acquired . | . . . . Robots Built . | . . . . Authchips . | . . . . Time . | . . . . Total Robot Build Rating . | . . . . Part Schematics Acquired . | . . . . Parts Built . | . . . . Authchips . | . . . . Time . | . . . . Total Part Build Rating . | . . . . Part Studies Acquired . | . . . . Parts Repaired . | . . . . Time . | . . . . Parts Recycled . | . . . . Recycled Matter 17 | . 17 . . Retrieved Matter . | . . . . Retrieved Components . | . . . . Parts Scanalyzed . | . . . . Part Schematics Acquired . | . . . . Parts Damaged . | . . . . Bothacking | -11 -10 -10 -8 ------------ Run | Yrd Mat Sub Mat Used RIF Installer . | . . . . Robots Hacked . | . . . . Non-combat . | . . . . Combat . | . . . . Robot Hacks Applied . | . . . . Relay Couplers Released . | . . . . Fabnet Peak Effective % . | . . . . Robots Rewired . | . . . . Allies Hacked . | . . . . Hacks Repelled . | . . . . Allies | -11 -10 -10 -8 -------- Run | Yrd Mat Sub Mat Total Allies . | . . . . Largest Group . | . . . . Highest-Rated Group . | . . . . Highest-Rated Ally . | . . . . Total Orders . | . . . . Ally Attacks . | . . . . Total Damage . | . . . . Kills . | . . . . Allies Corrupted . | . . . . Allies Melted . | . . . . Intel | -11 -10 -10 -8 ------- Run | Yrd Mat Sub Mat Active Infowar (turns) . | . . . . Robot Analysis Total . | . . . . Derelict Logs Recovered . | . . . . Drone Launches . | . . . . Drone Recoveries . | . . . . Exploration | -11 -10 -10 -8 ------------- Run | Yrd Mat Sub Mat Turns Passed 2485 | 1258 237 594 396 Spaces Moved 766 | 98 130 372 166 Core 11 | 11 . . . Treads 755 | 87 130 372 166 Legs . | . . . . Wheels . | . . . . Hover . | . . . . Flight . | . . . . Fastest Speed 50 | 50 160 160 152 Average Speed 156 | 147 160 160 152 Slowest Speed 160 | 160 160 160 160 Overloaded Moves . | . . . . Propulsion Burnouts . | . . . . Robots Hopped . | . . . . Potential Cave-ins . | . . . . Cave-ins Triggered . | . . . . Exploration Rate (%) 19 | 8 30 29 11 Regions Visited 3 Branch Regions 1 Pre-discovered Areas . | . . . . Known Exits Taken . | . . . . Unknown Exits Taken 3 | 1 1 1 . Scrap Searched . | . . . . Spaces Dug . | . . . . Terrain Destroyed . | . . . . Melee . | . . . . Projectile . | . . . . AOE . | . . . . Terrain Rammed . | . . . . Walls Destroyed . | . . . . Machines Disabled . | . . . . Actions | -11 -10 -10 -8 --------- Run | Yrd Mat Sub Mat Total 1965 | 1211 149 371 234 Wait 1097 | 1097 . . . Move 763 | 97 129 371 166 Hop . | . . . . Pick Up 28 | 11 6 . 11 Fast Attach 4 | 1 1 . 2 Attach 14 | 5 2 . 7 Detach . | . . . . Swap 1 | . . . 1 Drop 11 | . 4 . 7 Fire 44 | . 5 . 39 Melee . | . . . . Ram . | . . . . Kick . | . . . . Crush 3 | . 2 . 1 Escape Stasis . | . . . . Rewire . | . . . . Trap . | . . . . Miscellaneous . | . . . . Route ------- -11/Scrapyard -10/Materials -10/Subcaves (discovered 2 exits: *Mat / Rec) -8/Materials History --------- Turn | Location | Event 3 | -11/Scrapyard | Discovered new exit (range 15) 1259 | -11/Scrapyard | Entered Materials 1301 | -10/Materials | Build established: Mutant 1481 | -10/Materials | Discovered new exit (range 9) 1496 | -10/Materials | Entered Subcaves 1649 | -10/Subcaves | Shifting Twisted Machinery released Sub. Monowheel 1658 | -10/Subcaves | Shifting Twisted Machinery released Mak. System Restoration Module 1871 | -10/Subcaves | A swath of the cavern ceiling suddenly collapsed 2056 | -10/Subcaves | Discovered new exit (range 14) 2079 | -10/Subcaves | Visited Clippyterm 2084 | -10/Subcaves | Identified exit to Recycling 2090 | -10/Subcaves | Entered Materials 2090 | -8/Materials | Evolved 4 slots: Power x1, Utility x1, Weapon x2 2395 | -8/Materials | Build established: Tank 2486 | -8/Materials | Core integrity fell below 50% 2486 | -8/Materials | Self-destructed Last Messages --------------- U-05 Engineer builds a Wall. Shotgun destroyed. U-05 Engineer builds a Wall. Sml. Storage Unit destroyed. Critical hit (Blast). Acquired 21 matter. Critical hit (Burn: +37). Acquired Lgt. Assault Rifle. U-05 Engineer builds a Wall. Extracted 100 matter. Imp. Ion Engine destroyed. Slammed into R-06 Scavenger. Acquired 51 matter. R-06 Scavenger collects Shotgun. U-05 Engineer builds a Door. R-06 Scavenger collects Flight Unit. Slug penetrates R-06 Scavenger. R-06 Scavenger knocked back. R-06 Scavenger collects Flight Unit. U-05 Engineer builds a Door. Map ----- +----------------------------------------------------+ | ?????????????????????????????????????????????????? | | ?????????????????????????????????????????????????? | | ?????????????????????????????????????????????????? | | ?????????????????????????????????????????????????? | | ?????????????????????????????????????????????????? | | ?????????????????????????????????????????????????? | | ?????????????????????????????????????????????????? | | ?????????????????????????????????????????????????? | | ?????????????????????????????????????????????????? | | ?????????????????????????????????????????????????? | | ????????????????????????? ???????????????????????? | | ????????????????????????? ???????????????????????? | | ????????????????????????? ???????????????????????? | | ????????????????????????? ???????????????????????? | | ????????????????????????? ???????????????????????? | | ?????????????????????????g#??????????????????????? | | ????????????????????????? #??????????????????????? | | ????????????????????????#u#??????????????????????? | | ????????????????????????#u#??????????????????????? | | ????????????????????????#g#??????????????????????? | | ????????????????????????#m#??????????????????????? | | ????????????????????????#g#??????????????????????? | | ???????????????????????##g#??????????????????????? | | ???????????????????????##g#??????????????????????? | | ??????????????????????###g###????????????????????? | | ??????????????????????# %@! #????????????????????? | | ??????????????????????#*H r #????????????????????? | | ????????????????? """ +% ==#????????????????????? | | ????????????????? """ #u=%[=#????????????????????? | | ??????????????? #%[=* #????????????????????? | | ????????????? [ ! ?##%[ ##????????????????????? | | ????????????# ??##*==#?????????????????????? | | ????????????######?????# *[#?????????????????????? | | ???????????????????????#** #?????????????????????? | | ???????????????????????#r m#?????????????????????? | | ??????????#########????# #?????????????????????? | | ??????????# #????# #?????????????????????? | | ??????????# T #????# #?????????????????????? | | ??????????# #????# #?????????????????????? | | ??????????# [ ###### #?????????????????????? | | ??????????# # #?????????????????????? | | ??????????# " +?????????????????????? | | ??????????# # #?????????????????????? | | ??????????# ###+## #?????????????????????? | | ?????????## ## # #?????????#######?????? | | ?????????# ## # #?????????# #?????? | | ?????????## ## # #?????????# ]#?????? | | ??????????########## # #?????????# #?????? | | ???????????????????#! # #?????????# #?????? | | ???????????????????# # ########### #?????? | +----------------------------------------------------+ Best States ------------- Heat Dissipation 31 Energy Generation 21 Energy Capacity 415 Matter Stores 280 Matter Capacity 300 Sight Range 16 Terrain Scan Density 10 Armor Coverage 375 Evasion (%) 50 Recoil Reduction 2 Item Schematics ----------------- None Robot Schematics ------------------ None Fabricated ------------ Nothing Repaired ---------- Nothing Studied --------- None Alien Tech Used ----------------- None Achievements -------------- None Challenges ------------ None Game ------ Seed RapidMasterAccelerator Manual? 0 Play Time 00:12:22 Cumulative 1.8 hours Start 2026.06.29 @ 00:50:09 End 2026.07.01 @ 01:08:57 Sessions 2 Manual Loads 0 Difficulty Rogue Special Mode None Game No. 4 Rogue 4 Adventurer 0 Explorer 0 Win Type - Total 0 Types 0/0/0/0/0/0/0/0/0/0 Lore% 1 Gallery% 4 Achievement% 6 Wizard Run 0 Options --------- Layout 1 ASCII 0 Keyboard 0 Movement Mouse Keybinds 0 Fullscreen 1 Font 24/Smallcaps Map View 50x35 Zoom Use 0% Tactical HUD 0 Map Filters NONE Filters NONE Steam 1 RUN: a0c645d1-ad0c-4639-aacb-ed0e25cddd98